Workbook

Sheet 2017.7.31.현재
A1: 화정면 주민등록 인구 현황
A3: 2017. 7. 31. 기준 | M3: [ 단위 : 세대, 명 ]
A4: 법정리별 | F4: 행정리별 | M4: 경로당별
A5: 마을 | B5: 세대수 | C5: 인구수 | F5: 마을(통/반) (20/69) | I5: 세대수 | J5: 인구수 | M5: 경로당 | N5: 노인인구수
C6: 계 | D6: 남 | E6: 여 | J6: 계 | K6: 남 | L6: 여 | N6: 계 | O6: 남 | P6: 여
A7: 계 | B7: =SUM(B8:B33) -> 1296 | C7: =SUM(C8:C33) -> 2345 | D7: 1143 | E7: 1202 | F7: 계 | I7: =SUM(I8:I33) -> 1296 | J7: =SUM(J8:J33) -> 2345 | K7: 1143 | L7: 1202 | M7: 계 | N7: =SUM(N8:N33) -> 1073 | O7: =SUM(O8:O33) -> 413 | P7: 660
A8: 월호 | B8: 106 | C8: =SUM(D8:E9) -> 212 | D8: 104 | E8: 108 | F8: 개도출장소 | G8: 월호 | H8: (1/5) | I8: 79 | J8: =SUM(K8:L8) -> 168 | K8: 79 | L8: 89 | M8: 월호 | N8: =SUM(O8:P8) -> 51 | O8: 15 | P8: 36
G9: 자봉 | H9: (2/1) | I9: 27 | J9: =SUM(K9:L9) -> 44 | K9: 25 | L9: 19 | M9: 자봉 | N9: =SUM(O9:P9) -> 23 | O9: 11 | P9: 12
A10: 개도 | B10: 381 | C10: =SUM(D10:E16) -> 712 | D10: 364 | E10: 348 | G10: 월항 | H10: (3/2) | I10: 34 | J10: 64 | K10: 27 | L10: 37 | M10: 월항 | N10: 28 | O10: 9 | P10: 19
G11: 신흥 | H11: (4/2) | I11: 52 | J11: 92 | K11: 41 | L11: 51 | M11: 신흥 | N11: 49 | O11: 17 | P11: 32
G12: 화산 | H12: (5/10) | I12: 197 | J12: =SUM(K12:L13) -> 369 | K12: 195 | L12: 174 | M12: 화산 | N12: 114 | O12: 50 | P12: 64
M13: 화산상촌 | N13: 20 | O13: 8 | P13: 12
G14: 여석 | H14: (6/3) | I14: 39 | J14: =SUM(K14:L14) -> 73 | K14: 40 | L14: 33 | M14: 여석 | N14: 41 | O14: 22 | P14: 19
G15: 모전 | H15: (7/2) | I15: 32 | J15: =SUM(K15:L15) -> 63 | K15: 33 | L15: 30 | M15: 모전 | N15: 28 | O15: 12 | P15: 16
G16: 호령 | H16: (8/1) | I16: 27 | J16: 51 | K16: 28 | L16: 23 | M16: 호령 | N16: 29 | O16: 13 | P16: 16
A17: 제도 | B17: 55 | C17: =SUM(D17:E17) -> 106 | D17: 55 | E17: 51 | F17: 면사무소 | G17: 제도 | H17: (1/4) | I17: 55 | J17: 106 | K17: 55 | L17: 51 | M17: 제도 | N17: 60 | O17: 30 | P17: 30
A18: 백야 | B18: 211 | C18: =SUM(D18:E21) -> 389 | D18: 193 | E18: 196 | G18: 백야 | H18: (2/8) | I18: 163 | J18: 295 | K18: 141 | L18: 154 | M18: 백호 | N18: 122 | O18: 47 | P18: 75
M19: 샛터 | N19: 7 | O19: 1 | P19: 6
G20: 화백 | H20: (3/2) | I20: 48 | J20: 94 | K20: 52 | L20: 42 | M20: 화백 | N20: 17 | O20: 7 | P20: 10
M21: 와달 | N21: 19 | O21: 9 | P21: 10
A22: 하화 | B22: 32 | C22: =SUM(D22:E22) -> 55 | D22: 29 | E22: 26 | G22: 하화 | H22: (4/2) | I22: 32 | J22: 55 | K22: 29 | L22: 26 | M22: 하화 | N22: 26 | O22: 10 | P22: 16
A23: 상화 | B23: 42 | C23: =SUM(D23:E23) -> 68 | D23: 30 | E23: 38 | G23: 상화 | H23: (5/2) | I23: 42 | J23: 68 | K23: 30 | L23: 38 | M23: 상화 | N23: 39 | O23: 11 | P23: 28
A24: 조발 | B24: 44 | C24: =SUM(D24:E25) -> 71 | D24: 36 | E24: 35 | G24: 조발 | H24: (6/2) | I24: 19 | J24: 31 | K24: 17 | L24: 14 | M24: 조발 | N24: 20 | O24: 10 | P24: 10
G25: 둔병 | H25: (7/2) | I25: 25 | J25: 40 | K25: 19 | L25: 21 | M25: 둔병 | N25: 31 | O25: 14 | P25: 17
A26: 적금 | B26: 77 | C26: =SUM(D26:E26) -> 125 | D26: 49 | E26: 76 | G26: 적금 | H26: (8/5) | I26: 77 | J26: 125 | K26: 49 | L26: 76 | M26: 적금 | N26: 65 | O26: 19 | P26: 46
A27: 낭도 | B27: 214 | C27: =SUM(D27:E30) -> 330 | D27: 151 | E27: 179 | G27: 사도 | H27: (9/3) | I27: 25 | J27: 46 | K27: 20 | L27: 26 | M27: 사도 | N27: 20 | O27: 7 | P27: 13
G28: 여산 | H28: (10/8) | I28: 164 | J28: 252 | K28: 119 | L28: 133 | M28: 여산 | N28: 57 | O28: 57 | P28: -
M29: 낭도여자 | N29: 99 | O29: - | P29: 99
G30: 규포 | H30: (11/2) | I30: 25 | J30: 32 | K30: 12 | L30: 20 | M30: 규포 | N30: 20 | O30: 4 | P30: 16
A31: 여자 | B31: 134 | C31: =SUM(D31:E33) -> 277 | D31: 132 | E31: 145 | G31: 송여자 | H31: (12/1) | I31: 29 | J31: 54 | K31: 24 | L31: 30 | M31: 송여자 | N31: 23 | O31: 8 | P31: 15
G32: 마파지 | H32: (12/2) | I32: 47 | J32: 97 | K32: 40 | L32: 57 | M32: 마파지 | N32: 32 | O32: 11 | P32: 21
G33: 대동 | H33: (12/3) | I33: 58 | J33: 126 | K33: 68 | L33: 58 | M33: 대동 | N33: 33 | O33: 11 | P33: 22

Sheet 2017.8.31.현재
A1: 화정면 주민등록 인구 현황
A3: 2017. 8. 31. 기준 | M3: [ 단위 : 세대, 명 ]
A4: 법정리별 | F4: 행정리별 | M4: 경로당별
A5: 마을 | B5: 세대수 | C5: 인구수 | F5: 마을(통/반) (20/69) | I5: 세대수 | J5: 인구수 | M5: 경로당 | N5: 노인인구수
C6: 계 | D6: 남 | E6: 여 | J6: 계 | K6: 남 | L6: 여 | N6: 계 | O6: 남 | P6: 여
A7: 계 | B7: =SUM(B8:B33) -> 1296 | C7: =SUM(C8:C33) -> 2335 | D7: 1143 | E7: 1192 | F7: 계 | I7: =SUM(I8:I33) -> 1296 | J7: =SUM(J8:J33) -> 2084 | K7: 1143 | L7: 1192 | M7: 계 | N7: =SUM(N8:N33) -> 1069 | O7: =SUM(O8:O33) -> 414 | P7: 655
A8: 월호 | B8: 107 | C8: =SUM(D8:E9) -> 213 | D8: 104 | E8: 109 | F8: 개도출장소 | G8: 월호 | H8: (1/5) | I8: 79 | J8: =SUM(K8:L8) -> 168 | K8: 79 | L8: 89 | M8: 월호 | N8: =SUM(O8:P8) -> 52 | O8: 16 | P8: 36
G9: 자봉 | H9: (2/1) | I9: 28 | J9: =SUM(K9:L9) -> 45 | K9: 25 | L9: 20 | M9: 자봉 | N9: =SUM(O9:P9) -> 24 | O9: 11 | P9: 13
A10: 개도 | B10: 381 | C10: =SUM(D10:E16) -> 709 | D10: 363 | E10: 346 | G10: 월항 | H10: (3/2) | I10: 34 | J10: 63 | K10: 27 | L10: 36 | M10: 월항 | N10: 27 | O10: 9 | P10: 18
G11: 신흥 | H11: (4/2) | I11: 52 | J11: 91 | K11: 40 | L11: 51 | M11: 신흥 | N11: 48 | O11: 16 | P11: 32
G12: 화산 | H12: (5/10) | I12: 196 | J12: =SUM(K12:L13) -> 366 | K12: 194 | L12: 172 | M12: 화산 | N12: 111 | O12: 49 | P12: 62
M13: 화산상촌 | N13: 20 | O13: 8 | P13: 12
G14: 여석 | H14: (6/3) | I14: 39 | J14: =SUM(K14:L14) -> 73 | K14: 41 | L14: 32 | M14: 여석 | N14: 41 | O14: 22 | P14: 19
G15: 모전 | H15: (7/2) | I15: 32 | J15: =SUM(K15:L15) -> 63 | K15: 33 | L15: 30 | M15: 모전 | N15: 28 | O15: 12 | P15: 16
G16: 호령 | H16: (8/1) | I16: 28 | J16: 53 | K16: 28 | L16: 25 | M16: 호령 | N16: 29 | O16: 13 | P16: 16
A17: 제도 | B17: 55 | C17: =SUM(D17:E17) -> 106 | D17: 55 | E17: 51 | F17: 면사무소 | G17: 제도 | H17: (1/4) | I17: 55 | J17: 106 | K17: 55 | L17: 51 | M17: 제도 | N17: 61 | O17: 30 | P17: 31
A18: 백야 | B18: 208 | C18: =SUM(D18:E21) -> 386 | D18: 189 | E18: 197 | G18: 백야 | H18: (2/8) | I18: 160 | J18: =SUM(K18:L19) -> 292 | K18: 138 | L18: 154 | M18: 백호 | N18: 121 | O18: 47 | P18: 74
M19: 샛터 | N19: 7 | O19: 1 | P19: 6
G20: 화백 | H20: (3/2) | I20: 48 | J20: =SUM(K20:L21) -> 94 | K20: 51 | L20: 43 | M20: 화백 | N20: 18 | O20: 7 | P20: 11
M21: 와달 | N21: 20 | O21: 10 | P21: 10
A22: 하화 | B22: 32 | C22: =SUM(D22:E22) -> 55 | D22: 29 | E22: 26 | G22: 하화 | H22: (4/2) | I22: 32 | J22: =SUM(K22:L22) -> 55 | K22: 29 | L22: 26 | M22: 하화 | N22: 25 | O22: 10 | P22: 15
A23: 상화 | B23: 42 | C23: =SUM(D23:E23) -> 67 | D23: 30 | E23: 37 | G23: 상화 | H23: (5/2) | I23: 42 | J23: 67 | K23: 30 | L23: 37 | M23: 상화 | N23: 38 | O23: 11 | P23: 27
A24: 조발 | B24: 44 | C24: =SUM(D24:E25) -> 70 | D24: 37 | E24: 33 | G24: 조발 | H24: (6/2) | I24: 20 | J24: 31 | K24: 18 | L24: 13 | M24: 조발 | N24: 19 | O24: 10 | P24: 9
G25: 둔병 | H25: (7/2) | I25: 24 | J25: 39 | K25: 19 | L25: 20 | M25: 둔병 | N25: 30 | O25: 14 | P25: 16
A26: 적금 | B26: 75 | C26: =SUM(D26:E26) -> 122 | D26: 50 | E26: 72 | G26: 적금 | H26: (8/5) | I26: 75 | J26: 122 | K26: 50 | L26: 72 | M26: 적금 | N26: 64 | O26: 19 | P26: 45
A27: 낭도 | B27: 215 | C27: =SUM(D27:E30) -> 329 | D27: 151 | E27: 178 | G27: 사도 | H27: (9/3) | I27: 26 | J27: 46 | K27: 20 | L27: 26 | M27: 사도 | N27: 21 | O27: 7 | P27: 14
G28: 여산 | H28: (10/8) | I28: 164 | J28: 0 | K28: 119 | L28: 132 | M28: 여산 | N28: 57 | O28: 57 | P28: -
M29: 낭도여자 | N29: 100 | O29: - | P29: 100
G30: 규포 | H30: (11/2) | I30: 25 | J30: =SUM(K30:L30) -> 32 | K30: 12 | L30: 20 | M30: 규포 | N30: 20 | O30: 4 | P30: 16
A31: 여자 | B31: 137 | C31: =SUM(D31:E33) -> 278 | D31: 135 | E31: 143 | G31: 송여자 | H31: (12/1) | I31: 29 | J31: =SUM(K31:L31) -> 54 | K31: 24 | L31: 30 | M31: 송여자 | N31: 23 | O31: 8 | P31: 15
G32: 마파지 | H32: (12/2) | I32: 48 | J32: =SUM(K32:L32) -> 97 | K32: 42 | L32: 55 | M32: 마파지 | N32: 32 | O32: 12 | P32: 20
G33: 대동 | H33: (12/3) | I33: 60 | J33: =SUM(K33:L33) -> 127 | K33: 69 | L33: 58 | M33: 대동 | N33: 33 | O33: 11 | P33: 22

Sheet 2017.9.30.현재
A1: 화정면 주민등록 인구 현황
A3: 2017. 9. 30. 기준 | M3: [ 단위 : 세대, 명 ]
A4: 법정리별 | F4: 행정리별 | M4: 경로당별
A5: 마을 | B5: 세대수 | C5: 인구수 | F5: 마을(통/반) (20/69) | I5: 세대수 | J5: 인구수 | M5: 경로당 | N5: 노인인구수
C6: 계 | D6: 남 | E6: 여 | J6: 계 | K6: 남 | L6: 여 | N6: 계 | O6: 남 | P6: 여
A7: 계 | B7: =SUM(B8:B33) -> 1292 | C7: =SUM(C8:C33) -> 2333 | D7: 1145 | E7: 1188 | F7: 계 | I7: =SUM(I8:I33) -> 1292 | J7: =SUM(J8:J33) -> 2333 | K7: 1145 | L7: 1188 | M7: 계 | N7: =SUM(N8:N33) -> 1073 | O7: =SUM(O8:O33) -> 415 | P7: 658
A8: 월호 | B8: 107 | C8: =SUM(D8:E9) -> 214 | D8: 104 | E8: 110 | F8: 개도출장소 | G8: 월호 | H8: (1/5) | I8: 79 | J8: =SUM(K8:L8) -> 169 | K8: 79 | L8: 90 | M8: 월호 | N8: =SUM(O8:P8) -> 52 | O8: 16 | P8: 36
G9: 자봉 | H9: (2/1) | I9: 28 | J9: =SUM(K9:L9) -> 45 | K9: 25 | L9: 20 | M9: 자봉 | N9: =SUM(O9:P9) -> 24 | O9: 11 | P9: 13
A10: 개도 | B10: 378 | C10: =SUM(D10:E16) -> 706 | D10: 364 | E10: 342 | G10: 월항 | H10: (3/2) | I10: 34 | J10: 65 | K10: 30 | L10: 35 | M10: 월항 | N10: 26 | O10: 9 | P10: 17
G11: 신흥 | H11: (4/2) | I11: 52 | J11: 92 | K11: 41 | L11: 51 | M11: 신흥 | N11: 48 | O11: 16 | P11: 32
G12: 화산 | H12: (5/10) | I12: 194 | J12: =SUM(K12:L13) -> 361 | K12: 191 | L12: 170 | M12: 화산 | N12: 112 | O12: 49 | P12: 63
M13: 화산상촌 | N13: 20 | O13: 8 | P13: 12
G14: 여석 | H14: (6/3) | I14: 39 | J14: =SUM(K14:L14) -> 73 | K14: 41 | L14: 32 | M14: 여석 | N14: 41 | O14: 22 | P14: 19
G15: 모전 | H15: (7/2) | I15: 32 | J15: =SUM(K15:L15) -> 63 | K15: 33 | L15: 30 | M15: 모전 | N15: 28 | O15: 12 | P15: 16
G16: 호령 | H16: (8/1) | I16: 27 | J16: 52 | K16: 28 | L16: 24 | M16: 호령 | N16: 29 | O16: 13 | P16: 16
A17: 제도 | B17: 55 | C17: =SUM(D17:E17) -> 106 | D17: 55 | E17: 51 | F17: 면사무소 | G17: 제도 | H17: (1/4) | I17: 55 | J17: 106 | K17: 55 | L17: 51 | M17: 제도 | N17: 61 | O17: 30 | P17: 31
A18: 백야 | B18: 208 | C18: =SUM(D18:E21) -> 388 | D18: 190 | E18: 198 | G18: 백야 | H18: (2/8) | I18: 160 | J18: =SUM(K18:L19) -> 293 | K18: 139 | L18: 154 | M18: 백호 | N18: 122 | O18: 47 | P18: 75
M19: 샛터 | N19: 7 | O19: 1 | P19: 6
G20: 화백 | H20: (3/2) | I20: 48 | J20: =SUM(K20:L21) -> 95 | K20: 51 | L20: 44 | M20: 화백 | N20: 18 | O20: 7 | P20: 11
M21: 와달 | N21: 21 | O21: 10 | P21: 11
A22: 하화 | B22: 32 | C22: =SUM(D22:E22) -> 54 | D22: 29 | E22: 25 | G22: 하화 | H22: (4/2) | I22: 32 | J22: =SUM(K22:L22) -> 54 | K22: 29 | L22: 25 | M22: 하화 | N22: 26 | O22: 11 | P22: 15
A23: 상화 | B23: 41 | C23: =SUM(D23:E23) -> 66 | D23: 30 | E23: 36 | G23: 상화 | H23: (5/2) | I23: 41 | J23: 66 | K23: 30 | L23: 36 | M23: 상화 | N23: 37 | O23: 11 | P23: 26
A24: 조발 | B24: 44 | C24: =SUM(D24:E25) -> 70 | D24: 37 | E24: 33 | G24: 조발 | H24: (6/2) | I24: 20 | J24: 31 | K24: 18 | L24: 13 | M24: 조발 | N24: 19 | O24: 10 | P24: 9
G25: 둔병 | H25: (7/2) | I25: 24 | J25: 39 | K25: 19 | L25: 20 | M25: 둔병 | N25: 31 | O25: 14 | P25: 17
A26: 적금 | B26: 74 | C26: =SUM(D26:E26) -> 121 | D26: 49 | E26: 72 | G26: 적금 | H26: (8/5) | I26: 74 | J26: 121 | K26: 49 | L26: 72 | M26: 적금 | N26: 64 | O26: 19 | P26: 45
A27: 낭도 | B27: 215 | C27: =SUM(D27:E30) -> 329 | D27: 152 | E27: 177 | G27: 사도 | H27: (9/3) | I27: 26 | J27: 46 | K27: 20 | L27: 26 | M27: 사도 | N27: 21 | O27: 7 | P27: 14
G28: 여산 | H28: (10/8) | I28: 164 | J28: =SUM(K28:L29) -> 251 | K28: 120 | L28: 131 | M28: 여산 | N28: 57 | O28: 57 | P28: -
M29: 낭도여자 | N29: 100 | O29: - | P29: 100
G30: 규포 | H30: (11/2) | I30: 25 | J30: =SUM(K30:L30) -> 32 | K30: 12 | L30: 20 | M30: 규포 | N30: 20 | O30: 4 | P30: 16
A31: 여자 | B31: 138 | C31: =SUM(D31:E33) -> 279 | D31: 135 | E31: 144 | G31: 송여자 | H31: (12/1) | I31: 29 | J31: =SUM(K31:L31) -> 54 | K31: 24 | L31: 30 | M31: 송여자 | N31: 23 | O31: 8 | P31: 15
G32: 마파지 | H32: (12/2) | I32: 49 | J32: =SUM(K32:L32) -> 98 | K32: 42 | L32: 56 | M32: 마파지 | N32: 33 | O32: 12 | P32: 21
G33: 대동 | H33: (12/3) | I33: 60 | J33: =SUM(K33:L33) -> 127 | K33: 69 | L33: 58 | M33: 대동 | N33: 33 | O33: 11 | P33: 22

Sheet 2017.10.31.현재
A1: 화정면 주민등록 인구 현황
A3: 2017. 10. 31. 현재 | M3: [ 단위 : 세대, 명 ]
A4: 법정리별 | F4: 행정리별 | M4: 경로당별
A5: 마을 | B5: 세대수 | C5: 인구수 | F5: 마을(통/반) (20/69) | I5: 세대수 | J5: 인구수 | M5: 경로당 | N5: 노인인구수
C6: 계 | D6: 남 | E6: 여 | J6: 계 | K6: 남 | L6: 여 | N6: 계 | O6: 남 | P6: 여
A7: 계 | B7: =SUM(B8:B33) -> 1290 | C7: =SUM(C8:C33) -> 2325 | D7: 1139 | E7: 1186 | F7: 계 | I7: =SUM(I8:I33) -> 1290 | J7: =SUM(J8:J33) -> 2325 | K7: 1139 | L7: 1186 | M7: 계 | N7: =SUM(N8:N33) -> 1075 | O7: =SUM(O8:O33) -> 416 | P7: 659
A8: 월호 | B8: 106 | C8: =SUM(D8:E9) -> 210 | D8: 101 | E8: 109 | F8: 개도출장소 | G8: 월호 | H8: (1/5) | I8: 79 | J8: =SUM(K8:L8) -> 166 | K8: 77 | L8: 89 | M8: 월호 | N8: =SUM(O8:P8) -> 52 | O8: 16 | P8: 36
G9: 자봉 | H9: (2/1) | I9: 27 | J9: =SUM(K9:L9) -> 44 | K9: 24 | L9: 20 | M9: 자봉 | N9: =SUM(O9:P9) -> 24 | O9: 11 | P9: 13
A10: 개도 | B10: 377 | C10: =SUM(D10:E16) -> 704 | D10: 363 | E10: 341 | G10: 월항 | H10: (3/2) | I10: 35 | J10: 67 | K10: 31 | L10: 36 | M10: 월항 | N10: 26 | O10: 9 | P10: 17
G11: 신흥 | H11: (4/2) | I11: 51 | J11: 91 | K11: 41 | L11: 50 | M11: 신흥 | N11: 47 | O11: 16 | P11: 31
G12: 화산 | H12: (5/10) | I12: 192 | J12: =SUM(K12:L13) -> 359 | K12: 190 | L12: 169 | M12: 화산 | N12: 110 | O12: 48 | P12: 62
M13: 화산상촌 | N13: 20 | O13: 8 | P13: 12
G14: 여석 | H14: (6/3) | I14: 39 | J14: =SUM(K14:L14) -> 73 | K14: 41 | L14: 32 | M14: 여석 | N14: 42 | O14: 22 | P14: 20
G15: 모전 | H15: (7/2) | I15: 32 | J15: =SUM(K15:L15) -> 61 | K15: 31 | L15: 30 | M15: 모전 | N15: 28 | O15: 12 | P15: 16
G16: 호령 | H16: (8/1) | I16: 28 | J16: 53 | K16: 29 | L16: 24 | M16: 호령 | N16: 29 | O16: 13 | P16: 16
A17: 제도 | B17: 54 | C17: =SUM(D17:E17) -> 105 | D17: 55 | E17: 50 | F17: 면사무소 | G17: 제도 | H17: (1/4) | I17: 54 | J17: 105 | K17: 55 | L17: 50 | M17: 제도 | N17: 61 | O17: 30 | P17: 31
A18: 백야 | B18: 208 | C18: =SUM(D18:E21) -> 389 | D18: 190 | E18: 199 | G18: 백야 | H18: (2/8) | I18: 159 | J18: =SUM(K18:L19) -> 292 | K18: 138 | L18: 154 | M18: 백호 | N18: 122 | O18: 47 | P18: 75
M19: 샛터 | N19: 7 | O19: 1 | P19: 6
G20: 화백 | H20: (3/2) | I20: 49 | J20: =SUM(K20:L21) -> 97 | K20: 52 | L20: 45 | M20: 화백 | N20: 18 | O20: 7 | P20: 11
M21: 와달 | N21: 21 | O21: 10 | P21: 11
A22: 하화 | B22: 32 | C22: =SUM(D22:E22) -> 54 | D22: 29 | E22: 25 | G22: 하화 | H22: (4/2) | I22: 32 | J22: =SUM(K22:L22) -> 54 | K22: 29 | L22: 25 | M22: 하화 | N22: 26 | O22: 11 | P22: 15
A23: 상화 | B23: 41 | C23: =SUM(D23:E23) -> 66 | D23: 30 | E23: 36 | G23: 상화 | H23: (5/2) | I23: 41 | J23: 66 | K23: 30 | L23: 36 | M23: 상화 | N23: 37 | O23: 11 | P23: 26
A24: 조발 | B24: 44 | C24: =SUM(D24:E25) -> 69 | D24: 37 | E24: 32 | G24: 조발 | H24: (6/2) | I24: 20 | J24: 31 | K24: 18 | L24: 13 | M24: 조발 | N24: 19 | O24: 10 | P24: 9
G25: 둔병 | H25: (7/2) | I25: 24 | J25: 38 | K25: 19 | L25: 19 | M25: 둔병 | N25: 31 | O25: 14 | P25: 17
A26: 적금 | B26: 74 | C26: =SUM(D26:E26) -> 121 | D26: 49 | E26: 72 | G26: 적금 | H26: (8/5) | I26: 74 | J26: 121 | K26: 49 | L26: 72 | M26: 적금 | N26: 65 | O26: 19 | P26: 46
A27: 낭도 | B27: 217 | C27: =SUM(D27:E30) -> 331 | D27: 153 | E27: 178 | G27: 사도 | H27: (9/3) | I27: 27 | J27: 48 | K27: 20 | L27: 28 | M27: 사도 | N27: 22 | O27: 7 | P27: 15
G28: 여산 | H28: (10/8) | I28: 165 | J28: =SUM(K28:L29) -> 251 | K28: 121 | L28: 130 | M28: 여산 | N28: 58 | O28: 58 | P28: 0
M29: 낭도여자 | N29: 100 | O29: 0 | P29: 100
G30: 규포 | H30: (11/2) | I30: 25 | J30: =SUM(K30:L30) -> 32 | K30: 12 | L30: 20 | M30: 규포 | N30: 20 | O30: 4 | P30: 16
A31: 여자 | B31: 137 | C31: =SUM(D31:E33) -> 276 | D31: 132 | E31: 144 | G31: 송여자 | H31: (12/1) | I31: 29 | J31: =SUM(K31:L31) -> 54 | K31: 24 | L31: 30 | M31: 송여자 | N31: 23 | O31: 8 | P31: 15
G32: 마파지 | H32: (12/2) | I32: 48 | J32: =SUM(K32:L32) -> 97 | K32: 42 | L32: 55 | M32: 마파지 | N32: 34 | O32: 13 | P32: 21
G33: 대동 | H33: (12/3) | I33: 60 | J33: =SUM(K33:L33) -> 125 | K33: 66 | L33: 59 | M33: 대동 | N33: 33 | O33: 11 | P33: 22

Sheet 2017.11.30.현재
A1: 화정면 주민등록 인구 현황
A3: 2017. 11. 30. 현재 | M3: [ 단위 : 세대, 명 ]
A4: 법정리별 | F4: 행정리별 | M4: 경로당별
A5: 마을 | B5: 세대수 | C5: 인구수 | F5: 마을(통/반) (20/69) | I5: 세대수 | J5: 인구수 | M5: 경로당 | N5: 노인인구수
C6: 계 | D6: 남 | E6: 여 | J6: 계 | K6: 남 | L6: 여 | N6: 계 | O6: 남 | P6: 여
A7: 계 | B7: =SUM(B8:B33) -> 1284 | C7: =SUM(C8:C33) -> 2313 | D7: 1131 | E7: 1182 | F7: 계 | I7: =SUM(I8:I33) -> 1284 | J7: =SUM(J8:J33) -> 2313 | K7: 1131 | L7: 1182 | M7: 계 | N7: =SUM(N8:N33) -> 1072 | O7: =SUM(O8:O33) -> 414 | P7: 658
A8: 월호 | B8: 107 | C8: =SUM(D8:E9) -> 209 | D8: 101 | E8: 108 | F8: 개도출장소 | G8: 월호 | H8: (1/5) | I8: 79 | J8: =SUM(K8:L8) -> 164 | K8: 76 | L8: 88 | M8: 월호 | N8: =SUM(O8:P8) -> 52 | O8: 16 | P8: 36
G9: 자봉 | H9: (2/1) | I9: 28 | J9: =SUM(K9:L9) -> 45 | K9: 25 | L9: 20 | M9: 자봉 | N9: =SUM(O9:P9) -> 24 | O9: 11 | P9: 13
A10: 개도 | B10: 375 | C10: =SUM(D10:E16) -> 702 | D10: 360 | E10: 342 | G10: 월항 | H10: (3/2) | I10: 35 | J10: 67 | K10: 31 | L10: 36 | M10: 월항 | N10: 26 | O10: 9 | P10: 17
G11: 신흥 | H11: (4/2) | I11: 52 | J11: 93 | K11: 43 | L11: 50 | M11: 신흥 | N11: 47 | O11: 16 | P11: 31
G12: 화산 | H12: (5/10) | I12: 191 | J12: =SUM(K12:L13) -> 357 | K12: 188 | L12: 169 | M12: 화산 | N12: 110 | O12: 48 | P12: 62
M13: 화산상촌 | N13: 20 | O13: 8 | P13: 12
G14: 여석 | H14: (6/3) | I14: 39 | J14: =SUM(K14:L14) -> 73 | K14: 41 | L14: 32 | M14: 여석 | N14: 42 | O14: 22 | P14: 20
G15: 모전 | H15: (7/2) | I15: 31 | J15: =SUM(K15:L15) -> 60 | K15: 30 | L15: 30 | M15: 모전 | N15: 27 | O15: 11 | P15: 16
G16: 호령 | H16: (8/1) | I16: 27 | J16: 52 | K16: 27 | L16: 25 | M16: 호령 | N16: 27 | O16: 11 | P16: 16
A17: 제도 | B17: 54 | C17: =SUM(D17:E17) -> 104 | D17: 54 | E17: 50 | F17: 면사무소 | G17: 제도 | H17: (1/4) | I17: 54 | J17: 104 | K17: 54 | L17: 50 | M17: 제도 | N17: 61 | O17: 30 | P17: 31
A18: 백야 | B18: 207 | C18: =SUM(D18:E21) -> 387 | D18: 189 | E18: 198 | G18: 백야 | H18: (2/8) | I18: 158 | J18: =SUM(K18:L19) -> 290 | K18: 137 | L18: 153 | M18: 백호 | N18: 122 | O18: 47 | P18: 75
M19: 샛터 | N19: 7 | O19: 1 | P19: 6
G20: 화백 | H20: (3/2) | I20: 49 | J20: =SUM(K20:L21) -> 97 | K20: 52 | L20: 45 | M20: 화백 | N20: 18 | O20: 7 | P20: 11
M21: 와달 | N21: 22 | O21: 11 | P21: 11
A22: 하화 | B22: 31 | C22: =SUM(D22:E22) -> 52 | D22: 29 | E22: 23 | G22: 하화 | H22: (4/2) | I22: 31 | J22: =SUM(K22:L22) -> 52 | K22: 29 | L22: 23 | M22: 하화 | N22: 25 | O22: 11 | P22: 14
A23: 상화 | B23: 43 | C23: =SUM(D23:E23) -> 68 | D23: 31 | E23: 37 | G23: 상화 | H23: (5/2) | I23: 43 | J23: 68 | K23: 31 | L23: 37 | M23: 상화 | N23: 39 | O23: 12 | P23: 27
A24: 조발 | B24: 44 | C24: =SUM(D24:E25) -> 68 | D24: 37 | E24: 31 | G24: 조발 | H24: (6/2) | I24: 20 | J24: 30 | K24: 18 | L24: 12 | M24: 조발 | N24: 18 | O24: 9 | P24: 9
G25: 둔병 | H25: (7/2) | I25: 24 | J25: 38 | K25: 19 | L25: 19 | M25: 둔병 | N25: 31 | O25: 14 | P25: 17
A26: 적금 | B26: 73 | C26: =SUM(D26:E26) -> 121 | D26: 49 | E26: 72 | G26: 적금 | H26: (8/5) | I26: 73 | J26: 121 | K26: 49 | L26: 72 | M26: 적금 | N26: 65 | O26: 19 | P26: 46
A27: 낭도 | B27: 215 | C27: =SUM(D27:E30) -> 328 | D27: 149 | E27: 179 | G27: 사도 | H27: (9/3) | I27: 27 | J27: 46 | K27: 18 | L27: 28 | M27: 사도 | N27: 19 | O27: 5 | P27: 14
G28: 여산 | H28: (10/8) | I28: 163 | J28: =SUM(K28:L29) -> 250 | K28: 119 | L28: 131 | M28: 여산 | N28: 57 | O28: 57 | P28: 0
M29: 낭도여자 | N29: 101 | O29: 0 | P29: 101
G30: 규포 | H30: (11/2) | I30: 25 | J30: =SUM(K30:L30) -> 32 | K30: 12 | L30: 20 | M30: 규포 | N30: 20 | O30: 4 | P30: 16
A31: 여자 | B31: 135 | C31: =SUM(D31:E33) -> 274 | D31: 132 | E31: 142 | G31: 송여자 | H31: (12/1) | I31: 28 | J31: =SUM(K31:L31) -> 53 | K31: 24 | L31: 29 | M31: 송여자 | N31: 23 | O31: 9 | P31: 14
G32: 마파지 | H32: (12/2) | I32: 48 | J32: =SUM(K32:L32) -> 97 | K32: 42 | L32: 55 | M32: 마파지 | N32: 35 | O32: 14 | P32: 21
G33: 대동 | H33: (12/3) | I33: 59 | J33: =SUM(K33:L33) -> 124 | K33: 66 | L33: 58 | M33: 대동 | N33: 34 | O33: 12 | P33: 22
